bitfinex/quotes_BTCUSD_20250730
["timestamp","ask_amount","ask_price","bid_price","bid_amount"]
[1753877298545,0.8996761,117700.0,117690.0,0.14438]
[1753877299299,0.58737344,117700.0,117690.0,0.14438]
[1753877300173,0.58737539,117700.0,117690.0,0.14438]
[1753877300421,0.55517539,117700.0,117690.0,0.14438]
[1753877300699,0.55517539,117700.0,117690.0,0.17617]
[1753877301389,0.52267539,117700.0,117690.0,0.17933]
[1753877302128,0.58717539,117700.0,117690.0,0.17617]
[1753877302381,0.58717539,117700.0,117690.0,0.14438]
[1753877303098,0.58717576,117700.0,117690.0,0.14438]
[1753877303352,0.5871765,117700.0,117690.0,0.14438]
[1753877305416,0.5871765,117700.0,117690.0,0.17617]
[1753877305417,0.5226765,117700.0,117690.0,0.17617]
[1753877305659,0.5226765,117700.0,117690.0,0.17933]
[1753877305880,0.5226765,117700.0,117690.0,0.18149]
[1753877307414,0.49964671,117700.0,117690.0,0.18149]
[1753877307627,0.51663884,117700.0,117690.0,0.18149]
[1753877308496,0.51465884,117700.0,117690.0,0.18149]
[1753877308714,0.51465884,117700.0,117690.0,0.21199]
[1753877309392,0.50673833,117700.0,117690.0,0.55629266]
[1753877309663,0.51466299,117700.0,117690.0,0.55629266]
[1753877309893,0.51466299,117700.0,117690.0,0.24399]
[1753877310118,0.51466299,117700.0,117690.0,0.55629266]
[1753877311698,0.4908901,117700.0,117690.0,0.55629266]
[1753877311917,0.51466895,117700.0,117690.0,0.24399]
[1753877313243,0.48912695,117700.0,117690.0,0.24399]
[1753877313470,0.48912695,117700.0,117690.0,0.55629266]
[1753877313723,0.28912695,117700.0,117690.0,0.72623063]
[1753877313958,0.28912695,117700.0,117690.0,0.55629266]
[1753877315338,0.28120067,117700.0,117690.0,0.55629266]
[1753877316088,0.27270471,117700.0,117690.0,0.55629266]
[1753877317015,0.27270192,117700.0,117690.0,0.55629266]
[1753877318347,0.25685214,117700.0,117690.0,0.55629266]
[1753877319251,0.25685214,117700.0,117690.0,0.72623063]
[1753877319499,0.25685214,117700.0,117690.0,0.55629266]
[1753877320232,0.01699119,117700.0,117690.0,0.74312391]
[1753877320472,0.03398303,117700.0,117690.0,0.73462738]
[1753877320715,0.20390721,117700.0,117690.0,0.72613063]
[1753877320951,0.18691573,117700.0,117690.0,0.55615266]
[1753877321607,0.18691573,117700.0,117690.0,0.72609063]
[1753877323471,0.0169922,117700.0,117690.0,0.72609063]
[1753877323701,0.00849559,117700.0,117690.0,0.73458745]
[1753877323920,0.0169914,117700.0,117690.0,0.7430842]
[1753877324150,0.00849574,117700.0,117690.0,0.68918088]
[1753877324375,0.00849552,117700.0,117690.0,0.7514808]
[1753877324623,0.19539644,117710.0,117700.0,0.23222353]
[1753877324883,0.1337232,117710.0,117700.0,0.54668619]
[1753877325101,0.13372313,117710.0,117700.0,0.58163619]
[1753877325321,0.12580299,117710.0,117700.0,0.58163619]
[1753877325551,0.10996271,117710.0,117700.0,0.58163619]
[1753877325771,0.1014674,117710.0,117700.0,0.58163619]
[1753877325994,0.09297224,117710.0,117700.0,0.58163619]
[1753877326219,0.365537,117730.0,117720.0,0.16989466]
[1753877326482,0.63509931,117730.0,117720.0,0.68140732]
[1753877326715,0.64359296,117730.0,117720.0,0.68140732]
[1753877326947,0.30557296,117730.0,117720.0,0.68140732]
[1753877327180,0.30557296,117730.0,117720.0,0.36910466]
[1753877328752,0.12719851,117730.0,117720.0,0.39970466]
[1753877328992,0.12521865,117730.0,117720.0,0.71200732]
[1753877329212,0.29509888,117730.0,117720.0,0.71200732]
[1753877329426,0.2956747,117730.0,117720.0,0.71200732]
[1753877329627,0.11845239,117730.0,117720.0,0.71200732]
[1753877330088,0.31206452,117730.0,117720.0,0.71200732]
[1753877330767,0.31206452,117730.0,117720.0,0.39970466]
[1753877331611,0.13369028,117730.0,117720.0,0.39970466]
[1753877331828,0.12519635,117730.0,117720.0,0.71200732]
[1753877332043,0.142184,117730.0,117720.0,0.71200732]
[1753877332467,0.13369014,117730.0,117720.0,0.71200732]
[1753877332679,0.12519635,117730.0,117720.0,0.71200732]
[1753877332909,0.13369021,117730.0,117720.0,0.71200732]
[1753877333546,0.31206437,117730.0,117720.0,0.39970466]
[1753877334253,0.30457087,117730.0,117720.0,0.71200732]
[1753877334690,0.33010387,117730.0,117720.0,0.71200732]
[1753877335143,0.3216065,117730.0,117720.0,0.71200732]
[1753877335369,0.3216065,117730.0,117720.0,0.39970466]
[1753877335585,0.3216065,117730.0,117720.0,0.22981]
[1753877335802,0.3216065,117730.0,117720.0,0.39970466]
[1753877336867,0.15172627,117730.0,117720.0,0.39970466]
[1753877337091,0.15172599,117730.0,117720.0,0.71200732]
[1753877337302,0.32160622,117730.0,117720.0,0.71196732]
[1753877337510,0.3216065,117730.0,117720.0,0.22977]
[1753877337731,0.3216065,117730.0,117720.0,0.54207266]
[1753877338189,0.32160663,117730.0,117720.0,0.54207266]
[1753877338620,0.31311277,117730.0,117720.0,0.54207266]
[1753877339710,0.31311277,117730.0,117720.0,0.58120732]
[1753877339941,0.28938446,117730.0,117720.0,0.71196732]
[1753877340161,0.29729225,117730.0,117720.0,0.71196732]
[1753877340596,0.14323238,117730.0,117720.0,0.71196732]
[1753877340813,0.29787818,117730.0,117720.0,0.71196732]
[1753877341276,0.32160723,117730.0,117720.0,0.71196732]
[1753877341489,0.14381732,117730.0,117720.0,0.71196732]
[1753877341705,0.31369755,117730.0,117720.0,0.71196732]
[1753877342053,0.31369755,117730.0,117720.0,0.22977]
[1753877342154,0.30718383,117730.0,117720.0,0.06841]
[1753877342380,0.17838924,117720.0,117710.0,0.03226]
[1753877342634,0.18036924,117720.0,117710.0,0.16302]
[1753877342864,0.18036924,117720.0,117710.0,0.1985]
[1753877343111,0.26484654,117720.0,117710.0,0.0303]
[1753877343351,0.1784044,117710.0,117700.0,0.09886]
[1753877343595,0.1784044,117710.0,117700.0,0.06782271]
[1753877343837,0.1784044,117710.0,117700.0,0.13084271]
[1753877343838,0.2985217,117710.0,117700.0,0.13084271]
[1753877344322,0.2985217,117710.0,117700.0,0.16310271]
[1753877344556,0.3240577,117710.0,117700.0,0.03434271]
[1753877344783,0.3240577,117710.0,117700.0,0.16810271]
[1753877345016,0.3240577,117710.0,117700.0,0.03734271]
[1753877345261,0.3240577,117710.0,117700.0,0.16810271]
[1753877346199,0.3240577,117710.0,117700.0,0.00508271]
[1753877346457,0.3240577,117710.0,117700.0,0.13584271]
[1753877347857,0.3240577,117710.0,117700.0,0.00508271]
[1753877347858,0.3548577,117710.0,117700.0,0.00508271]
[1753877348320,0.3548577,117710.0,117700.0,0.13584271]
[1753877349079,0.3881577,117710.0,117700.0,0.13584271]
[1753877349323,1.04249036,117710.0,117700.0,0.00508271]
[1753877349554,1.05832461,117710.0,117700.0,0.13584271]
[1753877350029,0.74602195,117710.0,117700.0,0.13384271]
[1753877350465,0.74602195,117710.0,117700.0,0.13084271]
[1753877350932,0.74702195,117710.0,117700.0,0.13084271]
[1753877351640,1.05932461,117710.0,117700.0,0.13084271]
[1753877352323,1.05932461,117710.0,117700.0,8.271e-05]
[1753877353236,1.05729461,117710.0,117700.0,8.271e-05]
[1753877354419,0.74499195,117710.0,117700.0,8.271e-05]
[1753877355106,0.74702195,117710.0,117700.0,8.271e-05]
[1753877355350,1.06724432,117710.0,117700.0,8.271e-05]
[1753877357747,0.75494166,117710.0,117700.0,8.271e-05]
[1753877359413,0.75498166,117710.0,117700.0,8.271e-05]
[1753877359871,1.06728432,117710.0,117700.0,8.271e-05]
[1753877360315,0.75498166,117710.0,117700.0,8.271e-05]
[1753877360548,1.06524686,117710.0,117700.0,8.271e-05]
[1753877361018,1.19600686,117710.0,117700.0,8.271e-05]
[1753877361727,1.13190686,117710.0,117700.0,8.271e-05]
[1753877361954,1.13190686,117710.0,117700.0,0.03154271]
[1753877361955,1.12954686,117710.0,117700.0,0.03154271]
[1753877362152,1.12954686,117710.0,117700.0,0.03475271]
[1753877362368,1.16267686,117710.0,117700.0,8.271e-05]
[1753877364652,1.19277686,117710.0,117700.0,8.271e-05]
[1753877364904,0.8503742,117710.0,117700.0,8.271e-05]
[1753877366501,1.16267686,117710.0,117700.0,8.271e-05]
[1753877367179,1.19377686,117710.0,117700.0,8.271e-05]
[1753877367394,1.19579686,117710.0,117700.0,8.271e-05]
[1753877367615,0.8834942,117710.0,117700.0,8.271e-05]
[1753877367852,1.19579686,117710.0,117700.0,8.271e-05]
[1753877368273,1.17997007,117710.0,117700.0,8.271e-05]
[1753877368496,1.19579707,117710.0,117700.0,8.271e-05]
[1753877368727,1.19377707,117710.0,117700.0,8.271e-05]
[1753877368980,1.16267707,117710.0,117700.0,8.271e-05]
[1753877369984,1.19467707,117710.0,117700.0,8.271e-05]
[1753877370928,0.17843472,117690.0,117680.0,0.1625788]
[1753877371153,0.26291202,117690.0,117680.0,0.47715761]
[1753877371385,0.26291202,117690.0,117680.0,0.16485495]
[1753877371637,0.32359302,117690.0,117680.0,0.16333615]
[1753877372324,0.32359302,117690.0,117680.0,0.13303615]
[1753877372770,0.78404032,117690.0,117680.0,0.00214615]
[1753877373023,0.78404032,117690.0,117650.0,0.0312]
[1753877373024,0.67697892,117660.0,117650.0,0.0312]
[1753877373253,0.61145622,117660.0,117650.0,0.06848757]
[1753877373485,0.61145622,117660.0,117650.0,0.1364137]
[1753877373723,1.23965888,117660.0,117650.0,0.00068757]
[1753877373958,1.27562888,117660.0,117650.0,0.00068757]
[1753877374210,0.96332622,117660.0,117650.0,0.00068757]
[1753877374447,0.93052622,117660.0,117650.0,0.00068757]
[1753877374687,0.93056622,117660.0,117650.0,0.00068757]
[1753877374923,0.93928168,117660.0,117650.0,0.00068757]
[1753877375146,0.93611168,117660.0,117650.0,0.00068757]
[1753877375365,0.93611168,117660.0,117650.0,0.00281757]
[1753877375826,0.93811168,117660.0,117650.0,0.00281757]
[1753877376061,0.94011168,117660.0,117650.0,0.00381757]
[1753877376299,0.94015168,117660.0,117650.0,0.00381757]
[1753877376529,0.95596277,117660.0,117650.0,0.00381757]
[1753877376995,0.80596277,117660.0,117650.0,0.03527757]
[1753877377214,0.83151377,117660.0,117650.0,0.03848757]
[1753877377884,0.78056268,117660.0,117650.0,0.48111636]
[1753877378140,0.79636561,117660.0,117650.0,0.48111636]
[1753877378561,0.13982138,117660.0,117650.0,0.65111211]
[1753877378790,0.30980268,117660.0,117650.0,0.65111211]
[1753877379479,0.30780268,117660.0,117650.0,0.65111211]
[1753877379705,0.33244398,117660.0,117650.0,0.09988757]
[1753877379935,0.33244398,117660.0,117650.0,0.03348757]
[1753877380155,0.44485894,117660.0,117650.0,0.10088757]
[1753877382163,0.31409894,117660.0,117650.0,0.10088757]
[1753877385176,0.34722894,117660.0,117650.0,0.10088757]
[1753877385398,0.34923894,117660.0,117650.0,0.10088757]
[1753877386249,0.31409894,117660.0,117650.0,0.10088757]
[1753877386718,0.14411764,117660.0,117650.0,0.58318598]
[1753877386943,0.32259793,117660.0,117650.0,0.58318598]
[1753877387163,0.1611154,117660.0,117650.0,0.59168576]
[1753877387389,0.20385344,117660.0,117650.0,0.65111211]
[1753877387618,0.2209034,117660.0,117650.0,0.65111211]
[1753877387860,0.21240492,117660.0,117650.0,0.65111211]
[1753877388111,0.67661924,117660.0,117650.0,0.00168757]
[1753877388336,1.05148924,117660.0,117650.0,0.00168757]
[1753877388574,1.10975618,117660.0,117650.0,0.00168757]
[1753877388807,0.79745352,117660.0,117650.0,0.00168757]
[1753877389922,0.80535007,117660.0,117650.0,0.00168757]
[1753877390362,0.80534873,117660.0,117650.0,0.00168757]
[1753877390575,0.67458873,117660.0,117650.0,0.00168757]
[1753877391674,0.67141873,117660.0,117650.0,0.00364757]
[1753877391897,0.67141873,117660.0,117650.0,0.38130023]
[1753877391898,0.66352218,117660.0,117650.0,0.38130023]
[1753877392114,0.66352218,117660.0,117650.0,0.10079757]
[1753877393092,0.62838218,117660.0,117650.0,0.41310023]
[1753877393746,0.62838218,117660.0,117650.0,0.10079757]
[1753877394632,0.66202218,117660.0,117650.0,0.06438757]
[1753877394845,0.67290294,117660.0,117650.0,0.13276757]
[1753877395097,0.70560294,117660.0,117650.0,0.13276757]
[1753877395312,0.67290294,117660.0,117650.0,0.13276757]
[1753877395799,0.66992294,117660.0,117650.0,0.19819757]
[1753877396018,0.66202218,117660.0,117650.0,0.23327757]
[1753877396254,0.62838218,117660.0,117650.0,0.23327757]
[1753877396477,0.63628615,117660.0,117650.0,0.54558023]
[1753877396737,0.62838218,117660.0,117650.0,0.54558023]
[1753877396976,0.62838218,117660.0,117650.0,0.23327757]
[1753877397216,0.62838218,117660.0,117650.0,0.71557598]
[1753877397479,0.62838218,117660.0,117650.0,0.58449598]
[1753877397682,0.65352326,117660.0,117650.0,0.10219757]
[1753877397911,0.65352326,117660.0,117650.0,0.09911757]
[1753877398151,0.66142978,117660.0,117650.0,0.09911757]
[1753877398377,0.61988326,117660.0,117650.0,0.58449598]
[1753877398585,0.62838218,117660.0,117650.0,0.58449598]
[1753877398831,0.63629142,117660.0,117650.0,0.27219332]
[1753877399041,0.63629142,117660.0,117650.0,0.10219757]
[1753877400530,0.66993142,117660.0,117650.0,0.10219757]
[1753877401005,0.67291142,117660.0,117650.0,0.00168757]
[1753877401234,0.7573915,117660.0,117650.0,0.00168757]
[1753877401460,1.4250854,117660.0,117650.0,0.00168757]
[1753877401696,1.1198915,117660.0,117650.0,0.00168757]
[1753877402177,1.11989545,117660.0,117650.0,0.00168757]
[1753877402424,1.11202153,117660.0,117650.0,0.00168757]
[1753877402670,1.378118,117660.0,117650.0,0.00168757]
[1753877402904,0.59039539,117650.0,117640.0,0.0002]
[1753877403136,1.17145905,117650.0,117640.0,0.0002]
[1753877403369,1.17740244,117650.0,117640.0,0.0002]
[1753877403599,5.42945987,117640.0,117630.0,1e-08]
[1753877403833,6.04284353,117640.0,117630.0,1e-08]
[1753877404081,6.07432353,117640.0,117630.0,1e-08]
[1753877404331,0.71083257,117640.0,117630.0,1e-08]
[1753877404559,0.72667363,117640.0,117630.0,1e-08]
[1753877405209,0.75227263,117640.0,117630.0,1e-08]
[1753877406434,1.05746653,117640.0,117630.0,1e-08]
[1753877406684,1.05746653,117640.0,117630.0,0.00100001]
[1753877406928,0.76033565,117640.0,117630.0,0.00200001]
[1753877407171,0.76037565,117640.0,117630.0,0.00200001]
[1753877407410,0.79728268,117640.0,117630.0,0.00200001]
[1753877407611,0.76044574,117640.0,117630.0,0.00200001]
[1753877407779,1.06563964,117640.0,117630.0,0.00200001]
[1753877409622,0.94057,117640.0,117630.0,0.00200001]
[1753877409843,0.69358574,117640.0,117630.0,0.00200001]
[1753877410082,0.69951639,117640.0,117630.0,0.00200001]
[1753877410341,0.69356025,117640.0,117630.0,0.00200001]
[1753877410574,0.52900025,117640.0,117630.0,0.03841001]
[1753877410803,0.79996025,117640.0,117630.0,0.10341001]
[1753877411268,0.66904025,117640.0,117630.0,0.10341001]
[1753877411649,0.66908025,117640.0,117630.0,0.07151001]
[1753877411855,0.70272025,117640.0,117630.0,0.07151001]
[1753877412392,0.66912025,117640.0,117630.0,0.10181001]
[1753877412600,0.66912025,117640.0,117630.0,0.10081001]
[1753877412601,0.66512025,117640.0,117630.0,0.10081001]
[1753877412803,0.12959105,117640.0,117630.0,0.57602856]
[1753877413004,0.11906738,117640.0,117630.0,0.57602856]
[1753877413163,0.13606767,117640.0,117630.0,0.57602856]
[1753877413369,0.31657881,117640.0,117630.0,0.57602856]
[1753877413588,0.13606803,117640.0,117630.0,0.57502856]
[1753877413839,0.13410803,117640.0,117630.0,0.26983466]
[1753877413994,0.13410796,117640.0,117630.0,0.26983466]
[1753877414226,0.31461867,117640.0,117630.0,0.26983466]
[1753877414429,0.3081586,117640.0,117630.0,0.26983466]
[1753877414629,0.29965838,117640.0,117630.0,0.26983466]
[1753877414832,0.29969838,117640.0,117630.0,0.26983466]
[1753877415031,0.12118767,117640.0,117630.0,0.26983466]
[1753877415234,0.12177272,117640.0,117630.0,0.59203073]
[1753877415483,0.05429585,117640.0,117630.0,0.57502856]
[1753877415655,0.05429585,117640.0,117630.0,0.26983466]
[1753877416088,0.05229585,117640.0,117630.0,0.26983466]
[1753877416527,0.22030671,117640.0,117630.0,0.26983466]
[1753877416741,0.21180678,117640.0,117630.0,0.26983466]
[1753877416977,0.20330664,117640.0,117630.0,0.10081001]
[1753877417453,0.32142394,117640.0,117630.0,0.00100001]
[1753877417685,0.32440394,117640.0,117630.0,0.00100001]
[1753877417901,0.45254394,117640.0,117630.0,0.00296001]
[1753877418123,0.46044651,117640.0,117630.0,0.03586001]
[1753877418848,0.46043631,117640.0,117630.0,0.03390001]
[1753877419051,0.42679631,117640.0,117630.0,0.07004001]
[1753877419331,0.42679631,117640.0,117630.0,0.27076466]
[1753877419475,0.13676354,117640.0,117630.0,0.27176466]
[1753877419698,0.1112626,117640.0,117630.0,0.58545972]
[1753877419910,0.01828537,117640.0,117630.0,0.60246138]
[1753877420111,0.01828537,117640.0,117630.0,0.7043877]
[1753877420374,0.01628537,117640.0,117630.0,0.7033877]
[1753877420607,0.00048,117640.0,117630.0,0.7033877]
[1753877420818,0.00148,117640.0,117630.0,0.7033877]
[1753877422304,0.00048,117640.0,117630.0,0.7033877]
[1753877422885,0.00048,117640.0,117630.0,0.7023877]
[1753877423132,0.00897985,117640.0,117630.0,0.73166167]
[1753877423348,0.20001107,117640.0,117630.0,0.26976466]
[1753877423557,0.0854773,117640.0,117630.0,0.00200001]
[1753877423757,0.28492289,117640.0,117630.0,0.00200001]
[1753877423955,0.62492289,117640.0,117630.0,0.00200001]
[1753877424185,0.6259222,117640.0,117630.0,0.00600001]
[1753877424422,0.7571622,117640.0,117630.0,0.00600001]
[1753877425073,0.7900622,117640.0,117630.0,0.00600001]
[1753877425486,0.8219122,117640.0,117630.0,0.00600001]
[1753877425753,0.8454672,117640.0,117630.0,1e-08]
[1753877426168,0.8464672,117640.0,117630.0,1e-08]
[1753877426386,0.8135672,117640.0,117630.0,1e-08]
[1753877426592,0.8125672,117640.0,117630.0,1e-08]
[1753877427047,0.8135672,117640.0,117630.0,1e-08]
[1753877429677,0.8104572,117640.0,117630.0,1e-08]
[1753877430095,0.8135672,117640.0,117630.0,1e-08]
[1753877430726,0.8136072,117640.0,117630.0,1e-08]
[1753877430993,1.6143184,117640.0,117630.0,1e-08]
[1753877431439,1.6143584,117640.0,117630.0,1e-08]
[1753877431850,1.5299211,117640.0,117630.0,1e-08]
[1753877432077,1.5299611,117640.0,117630.0,1e-08]
[1753877432290,1.5300011,117640.0,117630.0,1e-08]
[1753877432527,1.2248072,117640.0,117630.0,1e-08]
[1753877432741,1.5300011,117640.0,117630.0,1e-08]
[1753877433372,1.22483243,117640.0,117630.0,1e-08]
[1753877433574,1.53794096,117640.0,117630.0,1e-08]
[1753877433815,1.53794059,117640.0,117630.0,1e-08]
[1753877434435,1.62241789,117640.0,117630.0,1e-08]
[1753877434662,1.53794059,117640.0,117630.0,1e-08]
[1753877435116,1.58632497,117640.0,117630.0,1e-08]
[1753877435345,6.60453041,117640.0,117630.0,1e-08]
[1753877435564,6.62953041,117640.0,117630.0,1e-08]
[1753877436011,6.72631128,117640.0,117630.0,1e-08]
[1753877436232,6.72037385,117640.0,117630.0,1e-08]
[1753877436688,6.71845922,117640.0,117630.0,0.00100001]
[1753877436905,0.5270584,117610.0,117600.0,0.09911613]
[1753877437138,0.7456357,117610.0,117600.0,0.10116613]
[1753877438243,0.7711977,117610.0,117600.0,0.10431475]
[1753877439611,0.7731977,117610.0,117600.0,0.10531475]
[1753877440065,0.7751977,117610.0,117600.0,0.10531475]
[1753877440542,0.7751977,117610.0,117600.0,0.03738862]
[1753877440751,0.7751977,117610.0,117600.0,0.03428862]
[1753877442154,0.7751977,117610.0,117600.0,0.03738862]
[1753877442867,1.25698611,117610.0,117600.0,0.00124862]
[1753877443113,1.17250881,117610.0,117600.0,0.00124862]
[1753877443367,1.20470881,117610.0,117600.0,0.00124862]
[1753877446297,1.18770397,117610.0,117590.0,0.0002]
[1753877446535,1.52630247,117600.0,117590.0,0.00034572]
[1753877446767,1.22312857,117600.0,117590.0,0.00034572]
[1753877447465,1.22001857,117600.0,117590.0,0.00034572]
[1753877447694,1.22001857,117600.0,117590.0,0.00134572]
[1753877447932,1.22101857,117600.0,117590.0,0.00134572]
[1753877448195,1.22101857,117600.0,117590.0,0.00034572]
[1753877448657,1.35389857,117600.0,117590.0,0.00034572]
[1753877450738,1.71631721,117600.0,117590.0,0.00034572]
[1753877450980,1.76410358,117600.0,117590.0,0.00034572]
[1753877451441,1.78226116,117600.0,117590.0,0.00034572]
[1753877453073,1.47706726,117600.0,117590.0,0.00034572]
[1753877453316,1.75365342,117600.0,117590.0,0.00034572]
[1753877454695,1.55365342,117600.0,117590.0,0.00034572]
[1753877455310,1.24845952,117600.0,117590.0,0.00034572]
[1753877455518,1.55365342,117600.0,117590.0,0.00034572]
[1753877456581,1.55364356,117600.0,117590.0,0.00034572]
[1753877457358,1.63812086,117600.0,117590.0,0.00034572]
[1753877457564,1.55364356,117600.0,117590.0,0.00034572]
[1753877458012,1.75364356,117600.0,117590.0,0.00034572]
[1753877459335,1.44847324,117600.0,117590.0,0.00034572]
[1753877459777,1.75366714,117600.0,117590.0,0.00034572]
[1753877459989,1.75366714,117600.0,117590.0,0.01612572]
[1753877460945,1.76151686,117600.0,117590.0,0.01612572]
[1753877461176,1.84599416,117600.0,117590.0,0.01612572]
[1753877461406,1.89708416,117600.0,117590.0,0.01612572]
[1753877462072,1.81260686,117600.0,117590.0,0.01612572]
[1753877462305,1.49651324,117600.0,117590.0,0.01612572]
[1753877462530,1.48073804,117600.0,117590.0,0.01612572]
[1753877462752,1.82336517,117600.0,117590.0,0.01612572]
[1753877463185,1.76178166,117600.0,117590.0,0.01612572]
[1753877463406,1.84625896,117600.0,117590.0,0.01612572]
[1753877463649,1.86992794,117600.0,117590.0,0.01612572]
[1753877464116,1.86006637,117600.0,117590.0,0.01612572]
[1753877464342,1.87584627,117600.0,117590.0,0.01612572]
[1753877464574,1.79136897,117600.0,117590.0,0.01612572]
[1753877464793,1.81409706,117600.0,117590.0,0.04879572]
[1753877465008,1.81409706,117600.0,117590.0,0.01612572]
[1753877466323,1.50105344,117600.0,117590.0,0.01612572]
[1753877466557,1.84427041,117600.0,117590.0,0.01612572]
[1753877467942,1.92874771,117600.0,117590.0,0.01612572]
[1753877468685,1.84427041,117600.0,117590.0,0.01612572]
[1753877469527,1.84427311,117600.0,117590.0,0.01612572]
[1753877469732,1.46485949,117600.0,117590.0,0.05396572]
[1753877469945,1.74772976,117600.0,117590.0,0.05396572]
[1753877470148,1.61524976,117600.0,117590.0,0.05396572]
[1753877470383,1.77995311,117600.0,117590.0,0.01612572]
[1753877470585,1.91896936,117600.0,117590.0,1e-08]
[1753877470795,1.89833981,117600.0,117590.0,1e-08]
[1753877471429,7.2329158,117600.0,117590.0,1e-08]
[1753877471671,7.2319158,117600.0,117590.0,1e-08]
[1753877471880,7.20918771,117600.0,117590.0,0.00100001]
[1753877472086,7.16511766,117600.0,117590.0,0.00100001]
[1753877472283,7.24959496,117600.0,117590.0,0.00100001]
[1753877472912,7.24959965,117600.0,117590.0,0.00100001]
[1753877473746,7.24859965,117600.0,117590.0,0.00100001]
[1753877475334,7.12118712,117600.0,117590.0,0.00200001]
[1753877475572,7.25374712,117600.0,117590.0,0.00200001]
[1753877475785,7.29900715,117600.0,117590.0,0.00200001]
[1753877476880,7.29904715,117600.0,117590.0,0.00200001]
[1753877477558,7.29904715,117600.0,117590.0,1e-08]
[1753877477791,0.72860165,117580.0,117570.0,0.03287]
[1753877478039,1.39295136,117580.0,117570.0,0.03287]
[1753877478254,1.42505136,117580.0,117570.0,0.03287]
[1753877478472,1.48506236,117580.0,117570.0,0.03287]
[1753877478902,1.36614506,117580.0,117570.0,0.03287]
[1753877479369,0.49166046,117570.0,117560.0,0.03361]
[1753877479590,0.75635925,117570.0,117560.0,0.03565]
[1753877479836,0.78858925,117570.0,117560.0,0.03565]
[1753877481173,0.78859299,117570.0,117560.0,0.03565]
[1753877481411,0.78863299,117570.0,117560.0,0.1007]
[1753877481637,0.78297599,117570.0,117560.0,0.1017]
[1753877481878,0.78497599,117570.0,117560.0,0.1017]
[1753877483001,0.81720599,117570.0,117560.0,0.1017]
[1753877483308,0.90380329,117570.0,117560.0,0.00605]
[1753877484132,0.90380161,117570.0,117560.0,0.00605]
[1753877484433,0.90380068,117570.0,117560.0,0.03675]
[1753877484663,0.90380068,117570.0,117560.0,0.0703]
[1753877484816,0.90380068,117570.0,117560.0,0.03675]
[1753877485437,0.89787166,117570.0,117560.0,0.03675]
[1753877485634,0.90379939,117570.0,117560.0,0.0703]
[1753877485847,0.59075577,117570.0,117560.0,0.0703]
[1753877486199,0.90167939,117570.0,117560.0,0.1031]
[1753877488078,0.90167939,117570.0,117560.0,0.0703]
[1753877488727,0.90167939,117570.0,117560.0,0.001]
[1753877488728,0.90376939,117570.0,117560.0,0.001]
[1753877488974,0.93382577,117570.0,117560.0,0.001]
[1753877489196,1.24376939,117570.0,117560.0,0.001]
[1753877489632,1.27696939,117570.0,117560.0,0.001]
[1753877490057,1.27596535,117570.0,117560.0,0.001]
[1753877490278,0.52863203,117560.0,117550.0,0.10155]
[1753877490492,0.77486415,117560.0,117550.0,0.10359]
[1753877490700,0.80709415,117560.0,117550.0,0.10359]
[1753877491348,1.12013777,117560.0,117550.0,0.10359]
[1753877491805,0.80909415,117560.0,117550.0,0.10459]
[1753877492032,1.32423777,117560.0,117550.0,0.10459]
[1753877492285,1.32623777,117560.0,117550.0,0.10459]
[1753877492504,1.03876915,117560.0,117550.0,0.10459]
[1753877492720,1.34971277,117560.0,117550.0,0.10459]
[1753877492936,1.34971188,117560.0,117550.0,0.10459]
[1753877493570,1.43418916,117560.0,117550.0,0.10459]
[1753877493806,1.34971188,117560.0,117550.0,0.10459]
[1753877496420,1.03666826,117560.0,117550.0,0.10459]
[1753877496861,1.03670826,117560.0,117550.0,0.10459]
[1753877497078,1.34975188,117560.0,117550.0,0.10459]
[1753877497986,1.03670826,117560.0,117550.0,0.10459]
[1753877498913,1.12118556,117560.0,117550.0,0.10459]
[1753877499794,1.03670826,117560.0,117550.0,0.10459]
[1753877500254,0.82820212,117560.0,117550.0,0.10459]
[1753877500733,0.69608212,117560.0,117550.0,0.10459]
[1753877500967,0.80435826,117560.0,117550.0,0.10459]
[1753877501195,0.83658826,117560.0,117550.0,0.10459]
[1753877501906,0.83661575,117560.0,117550.0,0.10459]
[1753877502356,0.83661574,117560.0,117550.0,0.10459]
[1753877503826,0.80438574,117560.0,117550.0,0.10459]
[1753877504709,0.80439464,117560.0,117550.0,0.10459]
[1753877504928,0.78857047,117560.0,117550.0,0.10459]
[1753877505146,0.80439478,117560.0,117550.0,0.10459]
[1753877505855,0.83662478,117560.0,117550.0,0.10459]
[1753877507676,0.83663911,117560.0,117550.0,0.10459]
[1753877507883,0.80440911,117560.0,117550.0,0.10459]
[1753877508343,0.83663911,117560.0,117550.0,0.10459]
[1753877510571,0.80441798,117560.0,117550.0,0.10459]
[1753877511500,0.83846798,117560.0,117550.0,0.10459]
[1753877512553,0.83847139,117560.0,117550.0,0.10459]
[1753877513642,0.83848279,117560.0,117550.0,0.10459]
[1753877514121,0.84048279,117560.0,117550.0,0.10459]
[1753877514573,0.83848279,117560.0,117550.0,0.10459]
[1753877515698,0.80443279,117560.0,117550.0,0.10459]
[1753877515921,0.65443279,117560.0,117550.0,0.10459]
[1753877516586,0.65443641,117560.0,117550.0,0.10459]
[1753877517026,0.45443641,117560.0,117550.0,0.10459]
[1753877517461,0.45443641,117560.0,117550.0,0.41763362]
[1753877517964,0.33094248,117560.0,117550.0,0.41763362]
[1753877518200,0.33094409,117560.0,117550.0,0.41763362]
[1753877518430,0.32301885,117560.0,117550.0,0.41763362]
[1753877518627,0.31707492,117560.0,117550.0,0.58777398]
[1753877518855,0.3012304,117560.0,117550.0,0.58777398]
[1753877519509,0.04662693,117560.0,117550.0,0.58777398]
[1753877519733,0.23376475,117560.0,117550.0,0.58777398]
[1753877521381,0.0466265,117560.0,117550.0,0.58777398]
[1753877521615,0.0466265,117560.0,117550.0,0.60478779]
[1753877521876,0.04662642,117560.0,117550.0,0.61329451]
[1753877522111,0.02105142,117560.0,117550.0,0.60478793]
[1753877522341,0.02105142,117560.0,117550.0,0.61329473]
[1753877522576,0.00404,117560.0,117550.0,0.6218016]
[1753877522810,0.00404,117560.0,117550.0,0.94335144]
[1753877523304,0.00204,117560.0,117550.0,0.94235144]
[1753877523533,0.00304,117560.0,117550.0,0.94335144]
[1753877524259,0.00204,117560.0,117550.0,0.94235144]
[1753877524731,0.00304,117560.0,117550.0,0.94335144]
[1753877524978,0.00104,117560.0,117550.0,0.94335144]
[1753877525439,0.00204,117560.0,117550.0,1.04527776]
[1753877525674,0.00104,117560.0,117550.0,1.04527776]
[1753877525894,0.00104,117560.0,117550.0,0.41919052]
[1753877526118,0.00104,117560.0,117550.0,1.04527776]
[1753877526573,4e-05,117560.0,117550.0,1.04527776]
[1753877526799,0.00104,117560.0,117550.0,1.04727776]
[1753877527006,0.00104,117560.0,117550.0,1.04627776]
[1753877527360,4e-05,117570.0,117560.0,0.27729291]
[1753877527596,4e-05,117570.0,117560.0,1.15813745]
[1753877528462,4e-05,117600.0,117590.0,0.25979398]
[1753877528667,0.00018589,117600.0,117590.0,1.01712122]